[Event "*** Titled Tuesday Blitz"]
[Site "Chess.com"]
[Date "2018.12.04"]
[Round "8"]
[White "Hrant_ChessMood"]
[Black "StephenDedalus83"]
[Result "1/2-1/2"]
[WhiteElo "2933"]
[BlackElo "2754"]
[TimeControl "180+2"]
[EndTime "14:57:15 PST"]
[Termination "Game drawn by agreement"]

1. d4 {[%clk 0:02:54.5]} 1... Nf6 {[%clk 0:03:00.4]} 2. c4 {[%clk 0:02:54.2]}
2... g6 {[%clk 0:03:01.4]} 3. Nc3 {[%clk 0:02:53.8]} 3... d5 {[%clk 0:03:02.5]}
4. Nf3 {[%clk 0:02:53.6]} 4... Bg7 {[%clk 0:03:03.1]} 5. h4 {[%clk 0:02:54.9]}
5... c6 {[%clk 0:03:03.5]} 6. cxd5 {[%clk 0:02:55.2]} 6... cxd5 {[%clk
0:03:04.3]} 7. Bf4 {[%clk 0:02:56.8]} 7... Nc6 {[%clk 0:03:05.3]} 8. e3 {[%clk
0:02:57.6]} 8... O-O {[%clk 0:03:05.1]} 9. Qb3 {[%clk 0:02:57.5]} 9... Na5
{[%clk 0:03:04.9]} 10. Qb4 {[%clk 0:02:57.8]} 10... Nc6 {[%clk 0:03:05.4]} 11.
Qb3 {[%clk 0:02:59]} 11... Na5 {[%clk 0:03:06.2]} 12. Qa3 {[%clk 0:02:52.8]}
12... Bf5 {[%clk 0:03:01.1]} 13. Ne5 {[%clk 0:02:53]} 13... Rc8 {[%clk
0:02:57.9]} 14. Be2 {[%clk 0:02:52.6]} 14... a6 {[%clk 0:02:50.9]} 15. O-O
{[%clk 0:02:45.6]} 15... Ne8 {[%clk 0:02:29]} 16. Rac1 {[%clk 0:02:38.3]} 16...
f6 {[%clk 0:02:15.9]} 17. Nf3 {[%clk 0:02:37.2]} 17... Nc4 {[%clk 0:02:10.6]}
18. Qb3 {[%clk 0:02:27.1]} 18... b5 {[%clk 0:02:10]} 19. a4 {[%clk 0:02:27.9]}
19... e5 {[%clk 0:01:27.4]} 20. dxe5 {[%clk 0:02:18.2]} 20... fxe5 {[%clk
0:01:28.3]} 21. Bg5 {[%clk 0:02:19.3]} 21... Qd7 {[%clk 0:01:29.3]} 22. axb5
{[%clk 0:02:08.6]} 22... axb5 {[%clk 0:01:24.2]} 23. Rfd1 {[%clk 0:02:09]} 23...
Be6 {[%clk 0:01:23.2]} 24. Qxb5 {[%clk 0:01:55.7]} 24... Qxb5 {[%clk 0:01:08]}
25. Nxb5 {[%clk 0:01:57.6]} 25... Rb8 {[%clk 0:01:07.3]} 26. Bxc4 {[%clk
0:01:41.3]} 26... dxc4 {[%clk 0:01:07.6]} 27. Na3 {[%clk 0:01:43.2]} 27... e4
{[%clk 0:00:55.9]} 28. Nd4 {[%clk 0:01:35.2]} 28... Bxd4 {[%clk 0:00:55.8]} 29.
Rxd4 {[%clk 0:01:37.1]} 29... Rxb2 {[%clk 0:00:56.8]} 30. Bf4 {[%clk 0:01:32.4]}
30... Nf6 {[%clk 0:00:57.5]} 31. Nxc4 {[%clk 0:01:24.8]} 31... Rc8 {[%clk
0:00:58.1]} 32. Rd8+ {[%clk 0:00:57.2]} 32... Rxd8 {[%clk 0:00:58]} 33. Nxb2
{[%clk 0:00:58.7]} 33... Rc8 {[%clk 0:00:38.9]} 34. Ra1 {[%clk 0:00:54.4]} 34...
Nd5 {[%clk 0:00:39.8]} 35. Be5 {[%clk 0:00:46.8]} 35... Rc2 {[%clk 0:00:39.9]}
36. Ra7 {[%clk 0:00:42.2]} 36... Nc3 {[%clk 0:00:36.2]} 37. Rg7+ {[%clk
0:00:36.7]} 37... Kf8 {[%clk 0:00:37.2]} 38. Rxh7 {[%clk 0:00:35.2]} 38... Nd1
{[%clk 0:00:31.3]} 39. Nxd1 {[%clk 0:00:33.7]} 39... Rc1 {[%clk 0:00:31.2]} 40.
Rh8+ {[%clk 0:00:28]} 40... Ke7 {[%clk 0:00:30.1]} 41. Rh7+ {[%clk 0:00:27.5]}
41... Kf8 {[%clk 0:00:26.8]} 42. Kh2 {[%clk 0:00:24.1]} 42... Rxd1 {[%clk
0:00:27.4]} 43. Rc7 {[%clk 0:00:21.9]} 43... Rd5 {[%clk 0:00:28.1]} 44. Bf4
{[%clk 0:00:19.4]} 44... Rd7 {[%clk 0:00:28.5]} 45. Rc6 {[%clk 0:00:19.9]} 45...
Kf7 {[%clk 0:00:29.2]} 46. Kg3 {[%clk 0:00:21.1]} 46... Rd5 {[%clk 0:00:29.6]}
47. Bg5 {[%clk 0:00:21.6]} 47... Rd7 {[%clk 0:00:27.1]} 48. Rb6 {[%clk
0:00:21.7]} 48... Rd2 {[%clk 0:00:26.7]} 49. Rb4 {[%clk 0:00:22.7]} 49... Bf5
{[%clk 0:00:27]} 50. Rb7+ {[%clk 0:00:23.8]} 50... Rd7 {[%clk 0:00:26.4]} 51.
Rb6 {[%clk 0:00:25.7]} 51... Be6 {[%clk 0:00:26.5]} 52. Rb8 {[%clk 0:00:26.3]}
52... Rc7 {[%clk 0:00:26.3]} 53. Bh6 {[%clk 0:00:27]} 53... Rc5 {[%clk
0:00:24.6]} 54. Rf8+ {[%clk 0:00:27]} 54... Ke7 {[%clk 0:00:25.6]} 55. Rf4
{[%clk 0:00:28.9]} 55... Bf5 {[%clk 0:00:24.7]} 56. Kh2 {[%clk 0:00:29.6]} 56...
Rc4 {[%clk 0:00:22.9]} 57. g4 {[%clk 0:00:30.3]} 57... Be6 {[%clk 0:00:24]} 58.
Bg5+ {[%clk 0:00:31]} 58... Kd6 {[%clk 0:00:24.8]} 59. Kg3 {[%clk 0:00:32.2]}
59... Kd5 {[%clk 0:00:23.9]} 60. Kg2 {[%clk 0:00:21.6]} 60... Rc2 {[%clk
0:00:21.4]} 61. Bf6 {[%clk 0:00:22.6]} 61... Ra2 {[%clk 0:00:21.4]} 62. Bg7
{[%clk 0:00:22.6]} 62... Ra7 {[%clk 0:00:21.2]} 63. Bd4 {[%clk 0:00:22.9]} 63...
Rf7 {[%clk 0:00:22.6]} 64. Kg3 {[%clk 0:00:22.4]} 64... Rxf4 {[%clk 0:00:23.1]}
65. Kxf4 {[%clk 0:00:24.3]} 65... Bf7 {[%clk 0:00:22.4]} 66. Ba1 {[%clk
0:00:21.9]} 66... Be8 {[%clk 0:00:22.7]} 67. Bb2 {[%clk 0:00:18.4]} 67... Bf7
{[%clk 0:00:23.9]} 68. Kg5 {[%clk 0:00:19.5]} 68... Ke6 {[%clk 0:00:24.6]} 69.
h5 {[%clk 0:00:15]} 69... gxh5 {[%clk 0:00:25.4]} 70. gxh5 {[%clk 0:00:16.9]}
70... Bg8 {[%clk 0:00:25.5]} 71. Kg6 {[%clk 0:00:18]} 71... Bf7+ {[%clk
0:00:26.8]} 72. Kg5 {[%clk 0:00:18.5]} 72... Bg8 {[%clk 0:00:27.8]} 73. Bc3
{[%clk 0:00:16.5]} 73... Kf7 {[%clk 0:00:25.5]} 74. Kh6 {[%clk 0:00:15.3]} 74...
Kf8 {[%clk 0:00:26.4]} 75. Bb4+ {[%clk 0:00:15.5]} 75... Kf7 {[%clk 0:00:27.3]}
76. Ba3 {[%clk 0:00:13.4]} 76... Kf6 {[%clk 0:00:28.2]} 77. Bb2+ {[%clk
0:00:14]} 77... Kf7 {[%clk 0:00:28.4]} 78. Bd4 {[%clk 0:00:09.2]} 78... Kf8
{[%clk 0:00:28.9]} 79. Bb6 {[%clk 0:00:09.2]} 79... Bf7 {[%clk 0:00:26.8]} 80.
Bd4 {[%clk 0:00:04.7]} 80... Kg8 {[%clk 0:00:27.5]} 81. Be5 {[%clk 0:00:05.3]}
81... Be8 {[%clk 0:00:28.5]} 82. Bf6 {[%clk 0:00:05.5]} 82... Bf7 {[%clk
0:00:29.7]} 83. Bg7 {[%clk 0:00:06.6]} 83... Be8 {[%clk 0:00:30.9]} 84. Bd4
{[%clk 0:00:07]} 84... Bf7 {[%clk 0:00:32.1]} 85. Be5 {[%clk 0:00:06.2]} 85...
Be8 {[%clk 0:00:33]} 86. Bf4 {[%clk 0:00:07.7]} 86... Bf7 {[%clk 0:00:34.2]} 87.
Kg5 {[%clk 0:00:09]} 87... Kh7 {[%clk 0:00:34.9]} 88. Kf5 {[%clk 0:00:07.4]}
88... Bd5 {[%clk 0:00:35.8]} 89. Ke5 {[%clk 0:00:07.7]} 89... Bc6 {[%clk
0:00:36.1]} 90. Bg3 {[%clk 0:00:08.3]} 90... Bb7 {[%clk 0:00:36.9]} 91. Kf5
{[%clk 0:00:08]} 91... Kh6 {[%clk 0:00:37.3]} 92. Kg4 {[%clk 0:00:08.7]} 92...
Bc8+ {[%clk 0:00:38.4]} 93. Kh4 {[%clk 0:00:10.2]} 93... Bb7 {[%clk 0:00:39.6]}
94. Bf4+ {[%clk 0:00:12]} 94... Kh7 {[%clk 0:00:40.8]} 95. Kg3 {[%clk
0:00:12.7]} 95... Bc6 {[%clk 0:00:40.6]} 96. Bg5 {[%clk 0:00:13.3]} 96... Be8
{[%clk 0:00:41.4]} 97. Kf4 {[%clk 0:00:11.1]} 97... Bc6 {[%clk 0:00:42.4]} 98.
Ke5 {[%clk 0:00:12.2]} 98... Bb7 {[%clk 0:00:43.5]} 99. Kd6 {[%clk 0:00:13.6]}
99... Ba8 {[%clk 0:00:44.3]} 100. Kc7 {[%clk 0:00:12]} 100... Bd5 {[%clk
0:00:45.2]} 101. Kb6 {[%clk 0:00:12.8]} 101... Bf7 {[%clk 0:00:46.1]} 102. Kc5
{[%clk 0:00:14.7]} 102... Bxh5 {[%clk 0:00:47]} 103. Kd4 {[%clk 0:00:14.7]}
103... Bf3 {[%clk 0:00:48.5]} 104. Bf4 {[%clk 0:00:12.3]} 1/2-1/2

[Event "*** Titled Tuesday Blitz"]
[Site "Chess.com"]
[Date "2018.12.04"]
[Round "8"]
[White "GadimbayliA"]
[Black "PelinGorki"]
[Result "1/2-1/2"]
[WhiteElo "2695"]
[BlackElo "2533"]
[TimeControl "180+2"]
[EndTime "14:58:00 PST"]
[Termination "Game drawn by repetition"]

1. e4 {[%clk 0:03:01.9]} 1... d6 {[%clk 0:03:00.7]} 2. d4 {[%clk 0:03:00]} 2...
Nf6 {[%clk 0:03:02.3]} 3. Nc3 {[%clk 0:03:00.8]} 3... c6 {[%clk 0:03:03.9]} 4.
Nf3 {[%clk 0:03:00.5]} 4... Bg4 {[%clk 0:03:04.9]} 5. a4 {[%clk 0:03:01.4]} 5...
a5 {[%clk 0:03:04.6]} 6. Bc4 {[%clk 0:03:02.2]} 6... e6 {[%clk 0:03:05.7]} 7. h3
{[%clk 0:03:00.5]} 7... Bh5 {[%clk 0:03:06.5]} 8. Be3 {[%clk 0:02:59.1]} 8... d5
{[%clk 0:03:07.4]} 9. Bd3 {[%clk 0:02:59.7]} 9... Be7 {[%clk 0:03:06.6]} 10. O-O
{[%clk 0:02:59.8]} 10... O-O {[%clk 0:03:06.6]} 11. e5 {[%clk 0:02:56.8]} 11...
Nfd7 {[%clk 0:03:07.5]} 12. Be2 {[%clk 0:02:55.7]} 12... c5 {[%clk 0:03:07.9]}
13. Nb5 {[%clk 0:02:56.7]} 13... Nc6 {[%clk 0:03:06.8]} 14. c3 {[%clk
0:02:57.4]} 14... f6 {[%clk 0:03:06.9]} 15. exf6 {[%clk 0:02:55.7]} 15... Rxf6
{[%clk 0:03:07]} 16. Bg5 {[%clk 0:02:46.5]} 16... Rf7 {[%clk 0:03:07.4]} 17. Nd6
{[%clk 0:02:32.8]} 17... Bxg5 {[%clk 0:02:46.4]} 18. Nxf7 {[%clk 0:02:33.5]}
18... Bxf7 {[%clk 0:02:46.4]} 19. Nxg5 {[%clk 0:01:49.2]} 19... Qxg5 {[%clk
0:02:46.9]} 20. Qb3 {[%clk 0:01:51.1]} 20... Nd8 {[%clk 0:02:37.2]} 21. Rfe1
{[%clk 0:01:46.4]} 21... c4 {[%clk 0:02:36.2]} 22. Qb5 {[%clk 0:01:39.9]} 22...
Nf6 {[%clk 0:02:37.2]} 23. Bf3 {[%clk 0:01:39.2]} 23... Be8 {[%clk 0:02:37.4]}
24. Qb6 {[%clk 0:01:38.3]} 24... Qf4 {[%clk 0:02:33.7]} 25. b3 {[%clk
0:01:36.9]} 25... cxb3 {[%clk 0:02:33.8]} 26. Qxb3 {[%clk 0:01:38.7]} 26... Qc7
{[%clk 0:02:34.4]} 27. Re3 {[%clk 0:01:37.7]} 27... Rc8 {[%clk 0:02:34.9]} 28.
Rae1 {[%clk 0:01:37.1]} 28... Bf7 {[%clk 0:02:35]} 29. Rc1 {[%clk 0:01:34.9]}
29... Ne8 {[%clk 0:02:26.5]} 30. Be2 {[%clk 0:01:31.7]} 30... Nd6 {[%clk
0:02:27.6]} 31. Bd3 {[%clk 0:01:32.3]} 31... Nc6 {[%clk 0:02:24.6]} 32. Ree1
{[%clk 0:01:29.4]} 32... Ne7 {[%clk 0:02:24.7]} 33. Qc2 {[%clk 0:01:27.4]} 33...
Ng6 {[%clk 0:02:25.2]} 34. Re3 {[%clk 0:01:25.5]} 34... Nc4 {[%clk 0:02:25.1]}
35. Rg3 {[%clk 0:01:24.8]} 35... Nf8 {[%clk 0:02:24.1]} 36. Qb3 {[%clk
0:01:22.1]} 36... Bg6 {[%clk 0:02:23.2]} 37. Bxc4 {[%clk 0:01:20.3]} 37... dxc4
{[%clk 0:02:23.7]} 38. Qb2 {[%clk 0:01:19.5]} 38... Bd3 {[%clk 0:02:22.5]} 39.
Re1 {[%clk 0:01:17.3]} 39... Qc6 {[%clk 0:02:22.4]} 40. Re5 {[%clk 0:01:15.2]}
40... Ng6 {[%clk 0:02:18.1]} 41. Rc5 {[%clk 0:01:12.8]} 41... Qd7 {[%clk
0:02:19.3]} 42. Qb5 {[%clk 0:01:12.3]} 42... Rc6 {[%clk 0:02:17.2]} 43. Qxa5
{[%clk 0:01:01.1]} 43... Rxc5 {[%clk 0:02:11.5]} 44. Qxc5 {[%clk 0:01:03]} 44...
Nf4 {[%clk 0:02:07.8]} 45. Rf3 {[%clk 0:00:59.2]} 45... Ng6 {[%clk 0:02:06.4]}
46. Re3 {[%clk 0:00:57.1]} 46... Ne7 {[%clk 0:02:03.9]} 47. Qe5 {[%clk
0:00:55.2]} 47... Nd5 {[%clk 0:02:03.1]} 48. Qb8+ {[%clk 0:00:51.6]} 48... Kf7
{[%clk 0:02:03.9]} 49. Rf3+ {[%clk 0:00:52.4]} 49... Nf6 {[%clk 0:02:04.3]} 50.
Re3 {[%clk 0:00:48.2]} 50... Be4 {[%clk 0:02:03.1]} 51. a5 {[%clk 0:00:46.4]}
51... Bd5 {[%clk 0:02:02.6]} 52. Re1 {[%clk 0:00:44.7]} 52... Qa4 {[%clk
0:02:00.3]} 53. Qc7+ {[%clk 0:00:41.3]} 53... Kf8 {[%clk 0:02:00]} 54. Qc5+
{[%clk 0:00:33.2]} 54... Kg8 {[%clk 0:01:50.8]} 55. Qc8+ {[%clk 0:00:34.4]}
55... Ne8 {[%clk 0:01:50.3]} 56. Rxe6 {[%clk 0:00:30.6]} 56... Bxe6 {[%clk
0:01:50.2]} 57. Qxe6+ {[%clk 0:00:32.5]} 57... Kf8 {[%clk 0:01:51.6]} 58. Qf5+
{[%clk 0:00:32.3]} 58... Ke7 {[%clk 0:01:48]} 59. Qg5+ {[%clk 0:00:32.8]} 59...
Kd7 {[%clk 0:01:47.5]} 60. Qf5+ {[%clk 0:00:33.9]} 60... Kc7 {[%clk 0:01:48.2]}
61. Qc5+ {[%clk 0:00:34.8]} 61... Kb8 {[%clk 0:01:48.2]} 62. g4 {[%clk 0:00:36]}
62... Nc7 {[%clk 0:01:47.7]} 63. Qf8+ {[%clk 0:00:35.1]} 63... Ka7 {[%clk
0:01:48.1]} 64. Qc5+ {[%clk 0:00:32.6]} 64... Kb8 {[%clk 0:01:47.5]} 65. Qf8+
{[%clk 0:00:33.6]} 65... Ne8 {[%clk 0:01:36.6]} 66. Qe7 {[%clk 0:00:31.8]} 66...
Qb5 {[%clk 0:01:34.8]} 67. h4 {[%clk 0:00:31.2]} 67... Ka7 {[%clk 0:01:33.6]}
68. g5 {[%clk 0:00:30.8]} 68... h6 {[%clk 0:01:33.1]} 69. f3 {[%clk 0:00:26.2]}
69... hxg5 {[%clk 0:01:31.8]} 70. hxg5 {[%clk 0:00:25.4]} 70... Qc6 {[%clk
0:01:29.1]} 71. Kf2 {[%clk 0:00:24]} 71... Qg6 {[%clk 0:01:29.4]} 72. Qc5+
{[%clk 0:00:22.8]} 72... Kb8 {[%clk 0:01:29.8]} 73. Qxc4 {[%clk 0:00:23.1]}
73... Qxg5 {[%clk 0:01:30.9]} 74. a6 {[%clk 0:00:22.7]} 74... Nd6 {[%clk
0:01:29.8]} 75. Qe6 {[%clk 0:00:23.6]} 75... Qd2+ {[%clk 0:00:44.9]} 76. Kg3
{[%clk 0:00:22.3]} 76... Qg5+ {[%clk 0:00:43.4]} 77. Kf2 {[%clk 0:00:22.1]}
77... Qd8 {[%clk 0:00:40.8]} 78. axb7 {[%clk 0:00:21.2]} 78... Kxb7 {[%clk
0:00:37.2]} 79. Qd5+ {[%clk 0:00:21.9]} 79... Ka6 {[%clk 0:00:33]} 80. c4 {[%clk
0:00:19.6]} 80... Qh4+ {[%clk 0:00:34.5]} 81. Ke2 {[%clk 0:00:18.3]} 81... Qe7+
{[%clk 0:00:30]} 82. Kd2 {[%clk 0:00:17.9]} 82... Nb7 {[%clk 0:00:25.3]} 83.
Qc6+ {[%clk 0:00:17.4]} 83... Ka7 {[%clk 0:00:25.5]} 84. c5 {[%clk 0:00:19]}
84... Qg5+ {[%clk 0:00:22.4]} 85. Kd3 {[%clk 0:00:18.2]} 85... Qf5+ {[%clk
0:00:22.5]} 86. Ke3 {[%clk 0:00:19.5]} 86... g5 {[%clk 0:00:21.7]} 87. Qe4
{[%clk 0:00:18.6]} 87... Qf7 {[%clk 0:00:20.8]} 88. Qc6 {[%clk 0:00:17.5]} 88...
Qb3+ {[%clk 0:00:21.3]} 89. Ke4 {[%clk 0:00:15.8]} 89... Qc2+ {[%clk 0:00:20.3]}
90. Ke3 {[%clk 0:00:16.7]} 90... Qc3+ {[%clk 0:00:20.5]} 91. Ke4 {[%clk
0:00:16.7]} 91... Qc2+ {[%clk 0:00:14]} 92. Ke3 {[%clk 0:00:16.4]} 92... Qc1+
{[%clk 0:00:14.2]} 93. Ke4 {[%clk 0:00:15.8]} 93... Qf4+ {[%clk 0:00:15.1]} 94.
Kd3 {[%clk 0:00:16.8]} 94... Qf5+ {[%clk 0:00:15.4]} 95. Ke3 {[%clk 0:00:15.3]}
95... Qf4+ {[%clk 0:00:12.3]} 96. Kd3 {[%clk 0:00:15.6]} 96... Kb8 {[%clk
0:00:09.4]} 97. Qe8+ {[%clk 0:00:10.6]} 97... Ka7 {[%clk 0:00:10]} 98. Qc6
{[%clk 0:00:10.7]} 98... Qf5+ {[%clk 0:00:09.3]} 99. Ke3 {[%clk 0:00:11.6]}
99... Qf4+ {[%clk 0:00:10.5]} 100. Kd3 {[%clk 0:00:12.7]} 1/2-1/2

[Event "*** Titled Tuesday Blitz"]
[Site "Chess.com"]
[Date "2018.12.04"]
[Round "8"]
[White "baki83"]
[Black "Msb2"]
[Result "1-0"]
[WhiteElo "2559"]
[BlackElo "2734"]
[TimeControl "180+2"]
[EndTime "14:58:15 PST"]
[Termination "baki83 won by resignation"]

1. e4 {[%clk 0:03:01.9]} 1... e6 {[%clk 0:03:00.7]} 2. d3 {[%clk 0:02:56.9]}
2... d5 {[%clk 0:03:02.6]} 3. Nd2 {[%clk 0:02:58.2]} 3... Nf6 {[%clk 0:03:03.9]}
4. Ngf3 {[%clk 0:02:57.3]} 4... b6 {[%clk 0:03:05.4]} 5. e5 {[%clk 0:02:52.9]}
5... Nfd7 {[%clk 0:03:06.6]} 6. g3 {[%clk 0:02:53.8]} 6... c5 {[%clk 0:03:06.3]}
7. Bg2 {[%clk 0:02:43]} 7... Nc6 {[%clk 0:03:06.7]} 8. O-O {[%clk 0:02:44.2]}
8... Ndxe5 {[%clk 0:03:04.1]} 9. Nxe5 {[%clk 0:02:44.6]} 9... Nxe5 {[%clk
0:03:06]} 10. Qe2 {[%clk 0:02:42.6]} 10... Nc6 {[%clk 0:03:00.8]} 11. Nf3 {[%clk
0:02:41.9]} 11... Be7 {[%clk 0:03:02.1]} 12. h4 {[%clk 0:02:41]} 12... Bf6
{[%clk 0:03:01.3]} 13. c3 {[%clk 0:02:41.5]} 13... h6 {[%clk 0:02:59]} 14. Bf4
{[%clk 0:02:41.7]} 14... O-O {[%clk 0:02:57.3]} 15. Rfe1 {[%clk 0:02:42.5]}
15... Re8 {[%clk 0:02:57]} 16. Ne5 {[%clk 0:02:42.6]} 16... Nxe5 {[%clk
0:02:57.4]} 17. Bxe5 {[%clk 0:02:43.8]} 17... Bxe5 {[%clk 0:02:59.3]} 18. Qxe5
{[%clk 0:02:44.8]} 18... Bb7 {[%clk 0:03:00.9]} 19. c4 {[%clk 0:02:38.2]} 19...
Rc8 {[%clk 0:02:58.6]} 20. b3 {[%clk 0:02:35.8]} 20... Qd7 {[%clk 0:02:59.2]}
21. Rad1 {[%clk 0:02:35.7]} 21... d4 {[%clk 0:02:58.3]} 22. Bxb7 {[%clk
0:02:28.3]} 22... Qxb7 {[%clk 0:03:00.2]} 23. Re4 {[%clk 0:02:28.1]} 23... f6
{[%clk 0:02:37.3]} 24. Qh5 {[%clk 0:02:28.9]} 24... Qf7 {[%clk 0:02:36.3]} 25.
Qe2 {[%clk 0:02:29.1]} 25... Re7 {[%clk 0:02:15.1]} 26. Re1 {[%clk 0:02:29.5]}
26... Rce8 {[%clk 0:02:16.8]} 27. f4 {[%clk 0:02:24.7]} 27... Qg6 {[%clk
0:02:17.3]} 28. Kh2 {[%clk 0:02:19.3]} 28... h5 {[%clk 0:02:06.4]} 29. Qf2
{[%clk 0:02:12]} 29... Qf5 {[%clk 0:02:05.7]} 30. Qf3 {[%clk 0:02:12.1]} 30...
Kf7 {[%clk 0:01:56.8]} 31. Kg2 {[%clk 0:02:05.6]} 31... e5 {[%clk 0:01:51.3]}
32. Qe2 {[%clk 0:02:02.8]} 32... Re6 {[%clk 0:01:49.1]} 33. Qf3 {[%clk
0:01:25.4]} 33... R8e7 {[%clk 0:01:34]} 34. a3 {[%clk 0:01:12]} 34... a5 {[%clk
0:01:11.9]} 35. a4 {[%clk 0:01:10.6]} 35... Kg6 {[%clk 0:01:05.7]} 36. Kf2
{[%clk 0:00:53.6]} 36... exf4 {[%clk 0:00:49.6]} 37. gxf4 {[%clk 0:00:47.7]}
37... Kh6 {[%clk 0:00:42]} 38. R1e2 {[%clk 0:00:14.7]} 38... Re8 {[%clk
0:00:22.7]} 39. Re1 {[%clk 0:00:14.9]} 39... Rxe4 {[%clk 0:00:17.2]} 40. dxe4
{[%clk 0:00:15.3]} 40... Qg4 {[%clk 0:00:18.6]} 41. Rg1 {[%clk 0:00:14.2]} 41...
Qxh4+ {[%clk 0:00:17.4]} 42. Kf1 {[%clk 0:00:13.7]} 42... f5 {[%clk 0:00:07.7]}
43. e5 {[%clk 0:00:11.6]} 43... g6 {[%clk 0:00:09]} 44. Ke2 {[%clk 0:00:10]}
44... Qh2+ {[%clk 0:00:08.2]} 45. Rg2 {[%clk 0:00:10.5]} 45... Qh4 {[%clk
0:00:09.8]} 46. Kd2 {[%clk 0:00:10.3]} 46... Re6 {[%clk 0:00:10.4]} 47. Kc2
{[%clk 0:00:10.5]} 47... Re7 {[%clk 0:00:10.4]} 48. Qc6 {[%clk 0:00:10.4]} 48...
Rg7 {[%clk 0:00:11.3]} 49. Qe8 {[%clk 0:00:08.2]} 49... Kh7 {[%clk 0:00:12.1]}
50. e6 {[%clk 0:00:05.4]} 50... Qxf4 {[%clk 0:00:13.1]} 51. Re2 {[%clk
0:00:05.9]} 51... d3+ {[%clk 0:00:14]} 52. Kxd3 {[%clk 0:00:06.7]} 52... Qf3+
{[%clk 0:00:14.5]} 53. Kd2 {[%clk 0:00:07.7]} 53... Qxb3 {[%clk 0:00:14.6]} 54.
e7 {[%clk 0:00:08.9]} 54... Qb2+ {[%clk 0:00:15.5]} 55. Ke1 {[%clk 0:00:09.5]}
55... Qc1+ {[%clk 0:00:16.2]} 56. Kf2 {[%clk 0:00:10.7]} 56... Qf4+ {[%clk
0:00:18.1]} 57. Ke1 {[%clk 0:00:11.7]} 57... Qh4+ {[%clk 0:00:18.7]} 58. Kd2
{[%clk 0:00:11.8]} 58... Qd4+ {[%clk 0:00:19.5]} 59. Ke1 {[%clk 0:00:12.8]}
59... f4 {[%clk 0:00:11.4]} 60. Qf8 {[%clk 0:00:13.1]} 60... Qg1+ {[%clk
0:00:11.9]} 61. Kd2 {[%clk 0:00:14.3]} 61... Qd4+ {[%clk 0:00:13.8]} 62. Ke1
{[%clk 0:00:15.5]} 62... Qg1+ {[%clk 0:00:13.2]} 63. Kd2 {[%clk 0:00:16.5]}
63... Qd4+ {[%clk 0:00:14.2]} 64. Kc2 {[%clk 0:00:17.2]} 64... Qxc4+ {[%clk
0:00:15.4]} 65. Kd1 {[%clk 0:00:18.2]} 65... Qxa4+ {[%clk 0:00:14.9]} 66. Ke1
{[%clk 0:00:19]} 66... Qa1+ {[%clk 0:00:09.9]} 67. Kf2 {[%clk 0:00:19.4]} 67...
Qd4+ {[%clk 0:00:11.8]} 68. Kg2 {[%clk 0:00:19.8]} 68... f3+ {[%clk 0:00:11.4]}
69. Qxf3 {[%clk 0:00:20]} 69... Rg8 {[%clk 0:00:05.7]} 70. e8=Q {[%clk
0:00:13.9]} 70... Rxe8 {[%clk 0:00:06.8]} 71. Rxe8 {[%clk 0:00:14.5]} 71... Qd7
{[%clk 0:00:06.3]} 72. Re2 {[%clk 0:00:13.3]} 72... a4 {[%clk 0:00:06.7]} 73.
Kf1 {[%clk 0:00:11.4]} 73... b5 {[%clk 0:00:06.7]} 74. Qf6 {[%clk 0:00:10.9]}
74... Qh3+ {[%clk 0:00:07.4]} 75. Ke1 {[%clk 0:00:10.8]} 75... Qh1+ {[%clk
0:00:07.4]} 76. Kd2 {[%clk 0:00:11]} 76... Qd5+ {[%clk 0:00:09]} 77. Kc1 {[%clk
0:00:08.8]} 77... Qc4+ {[%clk 0:00:10.1]} 78. Kd1 {[%clk 0:00:09]} 78... Qd5+
{[%clk 0:00:10.2]} 79. Rd2 {[%clk 0:00:08.2]} 79... Qh1+ {[%clk 0:00:09.4]} 80.
Kc2 {[%clk 0:00:08.4]} 80... Qe4+ {[%clk 0:00:11.1]} 81. Kc1 {[%clk 0:00:08.7]}
81... Qe1+ {[%clk 0:00:10.6]} 82. Rd1 {[%clk 0:00:08.5]} 82... Qe3+ {[%clk
0:00:11.8]} 83. Rd2 {[%clk 0:00:09.7]} 83... Qe1+ {[%clk 0:00:12.7]} 84. Kc2
{[%clk 0:00:10.8]} 84... Qe4+ {[%clk 0:00:13.9]} 85. Kb2 {[%clk 0:00:08.5]}
85... Qb4+ {[%clk 0:00:15]} 86. Kc1 {[%clk 0:00:08.4]} 86... Qc4+ {[%clk
0:00:12]} 87. Rc2 {[%clk 0:00:09.5]} 87... Qd5 {[%clk 0:00:11.5]} 88. Qe7+
{[%clk 0:00:10.1]} 88... Kh6 {[%clk 0:00:13.1]} 89. Qf8+ {[%clk 0:00:10.9]}
89... Kh7 {[%clk 0:00:13.7]} 90. Qe7+ {[%clk 0:00:11.8]} 90... Kh6 {[%clk
0:00:14.7]} 91. Qe3+ {[%clk 0:00:12.9]} 91... g5 {[%clk 0:00:14.9]} 92. Rxc5
{[%clk 0:00:13.8]} 92... Qh1+ {[%clk 0:00:16.2]} 93. Kb2 {[%clk 0:00:14.4]}
93... Qh2+ {[%clk 0:00:15.8]} 94. Rc2 {[%clk 0:00:14.4]} 94... Qd6 {[%clk
0:00:16.8]} 95. Rc5 {[%clk 0:00:10.9]} 95... Qf6+ {[%clk 0:00:17.6]} 96. Ka2
{[%clk 0:00:10.5]} 96... h4 {[%clk 0:00:18.4]} 97. Re5 {[%clk 0:00:10.6]} 97...
Kh5 {[%clk 0:00:18.2]} 98. Qe2+ {[%clk 0:00:11.3]} 98... Kg6 {[%clk 0:00:13.3]}
99. Re6 {[%clk 0:00:12.7]} 99... b4 {[%clk 0:00:14]} 100. Qe4+ {[%clk
0:00:12.7]} 100... Kg7 {[%clk 0:00:14.9]} 101. Rxf6 {[%clk 0:00:12.4]} 101...
Kxf6 {[%clk 0:00:16.8]} 102. Qxb4 {[%clk 0:00:11.9]} 102... Kf5 {[%clk
0:00:18.7]} 103. Qc5+ {[%clk 0:00:11.6]} 103... Kg4 {[%clk 0:00:19.8]} 104. Qg1+
{[%clk 0:00:12.5]} 104... Kf4 {[%clk 0:00:20.5]} 105. Qf2+ {[%clk 0:00:13.2]}
105... Kg4 {[%clk 0:00:22]} 106. Qg2+ {[%clk 0:00:14.2]} 106... Kf4 {[%clk
0:00:23.6]} 107. Ka3 {[%clk 0:00:12.6]} 107... g4 {[%clk 0:00:24.9]} 108. Qf2+
{[%clk 0:00:13.7]} 108... Kg5 {[%clk 0:00:26.4]} 109. Qe3+ {[%clk 0:00:14.2]}
109... Kg6 {[%clk 0:00:27.6]} 110. Qf4 {[%clk 0:00:13.7]} 110... Kh5 {[%clk
0:00:28.8]} 111. Qf5+ {[%clk 0:00:14.7]} 1-0